[Event "Late-Titled-Tuesday-Blitz-October-03-2023"]
[Site "Chess.com"]
[Date "2023.10.03"]
[Round "10"]
[White "azikom"]
[Black "lemures27"]
[Result "1-0"]
[WhiteElo "2603"]
[BlackElo "2474"]
[TimeControl "180+1"]
[EndTime "15:48:19 PDT"]
[Termination "azikom won by resignation"]

1. d4 {[%clk 0:03:00.4]} 1... d5 {[%clk 0:02:58.5]} 2. Nf3 {[%clk 0:02:59.7]}
2... c6 {[%clk 0:02:58.9]} 3. Bf4 {[%clk 0:02:59.8]} 3... Nf6 {[%clk 0:02:59.3]}
4. e3 {[%clk 0:03:00.3]} 4... Bg4 {[%clk 0:02:58.4]} 5. Nbd2 {[%clk 0:02:59.3]}
5... Nbd7 {[%clk 0:02:58.1]} 6. h3 {[%clk 0:02:58.9]} 6... Bh5 {[%clk
0:02:56.7]} 7. c4 {[%clk 0:02:57.8]} 7... e6 {[%clk 0:02:55.3]} 8. Be2 {[%clk
0:02:58.2]} 8... Be7 {[%clk 0:02:49.9]} 9. O-O {[%clk 0:02:57.8]} 9... O-O
{[%clk 0:02:49.3]} 10. a3 {[%clk 0:02:58.7]} 10... Re8 {[%clk 0:02:43.2]} 11. b4
{[%clk 0:02:57.3]} 11... a6 {[%clk 0:02:41.6]} 12. Bh2 {[%clk 0:02:50.6]} 12...
Bf8 {[%clk 0:02:35.6]} 13. Rc1 {[%clk 0:02:48.9]} 13... a5 {[%clk 0:02:34.1]}
14. c5 {[%clk 0:02:47.6]} 14... Bxf3 {[%clk 0:02:30]} 15. Nxf3 {[%clk 0:02:43]}
15... axb4 {[%clk 0:02:26.8]} 16. axb4 {[%clk 0:02:42.7]} 16... Ne4 {[%clk
0:02:24.9]} 17. Bd3 {[%clk 0:02:39.8]} 17... f5 {[%clk 0:02:22.2]} 18. b5 {[%clk
0:02:38]} 18... Qa5 {[%clk 0:02:16.4]} 19. Qb3 {[%clk 0:02:29.3]} 19... Qa2
{[%clk 0:02:14.1]} 20. Rb1 {[%clk 0:02:22.4]} 20... e5 {[%clk 0:01:54.7]} 21.
Qxa2 {[%clk 0:02:14.4]} 21... Rxa2 {[%clk 0:01:51.6]} 22. bxc6 {[%clk
0:02:13.5]} 22... bxc6 {[%clk 0:01:49.3]} 23. Nxe5 {[%clk 0:01:59.4]} 23... Nxe5
{[%clk 0:01:45.5]} 24. Bxe4 {[%clk 0:01:52.6]} 24... dxe4 {[%clk 0:01:27.1]} 25.
Bxe5 {[%clk 0:01:50.5]} 25... Bxc5 {[%clk 0:01:25]} 26. Rfc1 {[%clk 0:01:36]}
1-0

[Event "Late-Titled-Tuesday-Blitz-October-03-2023"]
[Site "Chess.com"]
[Date "2023.10.03"]
[Round "10"]
[White "elmusmolamas"]
[Black "Inepton_Fermion"]
[Result "1-0"]
[WhiteElo "2529"]
[BlackElo "2411"]
[TimeControl "180+1"]
[EndTime "15:48:36 PDT"]
[Termination "elmusmolamas won by resignation"]

1. e4 {[%clk 0:03:00.9]} 1... c5 {[%clk 0:02:59.5]} 2. Nc3 {[%clk 0:03:00.7]}
2... Nc6 {[%clk 0:02:58.6]} 3. Nge2 {[%clk 0:03:01.6]} 3... e6 {[%clk
0:02:47.3]} 4. d4 {[%clk 0:03:01.3]} 4... cxd4 {[%clk 0:02:48.2]} 5. Nxd4 {[%clk
0:03:01.7]} 5... Qc7 {[%clk 0:02:48.5]} 6. g3 {[%clk 0:03:02]} 6... a6 {[%clk
0:02:48.5]} 7. Bg2 {[%clk 0:03:01.8]} 7... Nge7 {[%clk 0:02:48.6]} 8. O-O {[%clk
0:03:00.6]} 8... Nxd4 {[%clk 0:02:48.8]} 9. Qxd4 {[%clk 0:03:00.5]} 9... Nc6
{[%clk 0:02:49.7]} 10. Qd1 {[%clk 0:02:55.4]} 10... Ne5 {[%clk 0:02:46.1]} 11.
Bf4 {[%clk 0:02:51.8]} 11... b5 {[%clk 0:02:40.5]} 12. Re1 {[%clk 0:02:50]}
12... Bb7 {[%clk 0:02:37]} 13. Nd5 {[%clk 0:02:41]} 13... exd5 {[%clk
0:02:11.8]} 14. Bxe5 {[%clk 0:02:41]} 14... d6 {[%clk 0:02:12.7]} 15. Bd4 {[%clk
0:02:27]} 15... dxe4 {[%clk 0:01:26.1]} 16. Bxe4 {[%clk 0:02:27.9]} 16... O-O-O
{[%clk 0:01:16.6]} 17. Bxb7+ {[%clk 0:02:01.9]} 17... Qxb7 {[%clk 0:01:17.5]}
18. Bxg7 {[%clk 0:01:59]} 18... Bxg7 {[%clk 0:01:02.7]} 19. Qg4+ {[%clk
0:01:59.7]} 19... Kb8 {[%clk 0:01:03.3]} 20. Qxg7 {[%clk 0:01:59.7]} 20... h5
{[%clk 0:01:03.9]} 21. h4 {[%clk 0:01:50.3]} 21... Rc8 {[%clk 0:00:46.6]} 22. c3
{[%clk 0:01:47]} 22... Rhg8 {[%clk 0:00:41.9]} 23. Qf6 {[%clk 0:01:46.2]} 1-0

[Event "Late-Titled-Tuesday-Blitz-October-03-2023"]
[Site "Chess.com"]
[Date "2023.10.03"]
[Round "10"]
[White "OYAcosta"]
[Black "Eloist"]
[Result "0-1"]
[WhiteElo "2186"]
[BlackElo "2423"]
[TimeControl "180+1"]
[EndTime "15:48:46 PDT"]
[Termination "Eloist won by resignation"]

1. d4 {[%clk 0:03:00.9]} 1... e6 {[%clk 0:03:00.1]} 2. Bf4 {[%clk 0:03:00.4]}
2... Nf6 {[%clk 0:02:59.2]} 3. e3 {[%clk 0:02:59.9]} 3... d5 {[%clk 0:02:59.1]}
4. Nf3 {[%clk 0:03:00.1]} 4... c5 {[%clk 0:02:59.2]} 5. c3 {[%clk 0:03:00]} 5...
Nc6 {[%clk 0:02:59.3]} 6. Nbd2 {[%clk 0:03:00]} 6... Bd6 {[%clk 0:02:58.9]} 7.
Bg3 {[%clk 0:03:00.6]} 7... O-O {[%clk 0:02:58.1]} 8. Bd3 {[%clk 0:03:00.5]}
8... b6 {[%clk 0:02:57.7]} 9. Ne5 {[%clk 0:03:00.4]} 9... Qc7 {[%clk 0:02:53.6]}
10. f4 {[%clk 0:03:00.2]} 10... Ne7 {[%clk 0:02:34.5]} 11. Qb1 {[%clk 0:02:58]}
11... Nf5 {[%clk 0:02:31.4]} 12. Bf2 {[%clk 0:02:57.1]} 12... Be7 {[%clk
0:02:17.2]} 13. g4 {[%clk 0:02:55]} 13... Nd6 {[%clk 0:02:16.9]} 14. g5 {[%clk
0:02:54.1]} 14... Nfe4 {[%clk 0:02:16.8]} 15. Nxe4 {[%clk 0:02:54.2]} 15... Nxe4
{[%clk 0:02:16.5]} 16. Rg1 {[%clk 0:02:33.3]} 16... Bb7 {[%clk 0:02:12.3]} 17.
h4 {[%clk 0:02:31.2]} 17... Kh8 {[%clk 0:02:07.2]} 18. Qd1 {[%clk 0:02:30.5]}
18... f6 {[%clk 0:01:57.6]} 19. Nf3 {[%clk 0:02:18.4]} 19... cxd4 {[%clk
0:01:33.4]} 20. exd4 {[%clk 0:02:10.8]} 20... Qxf4 {[%clk 0:01:29.4]} 21. g6
{[%clk 0:02:04.3]} 21... e5 {[%clk 0:01:17.5]} 22. Qe2 {[%clk 0:02:01.1]} 22...
Nxf2 {[%clk 0:01:14.8]} 23. gxh7 {[%clk 0:01:43.4]} 23... Nxd3+ {[%clk
0:01:09.6]} 24. Qxd3 {[%clk 0:01:43.7]} 24... e4 {[%clk 0:01:08.4]} 25. Qb5
{[%clk 0:01:38.5]} 25... Qe3+ {[%clk 0:01:05.4]} 26. Kd1 {[%clk 0:01:38.5]}
26... Qxf3+ {[%clk 0:01:04.9]} 27. Kc2 {[%clk 0:01:38.2]} 27... Qd3+ {[%clk
0:01:03.8]} 28. Qxd3 {[%clk 0:01:38]} 28... exd3+ {[%clk 0:01:04.7]} 29. Kd2
{[%clk 0:01:38.7]} 29... Ba6 {[%clk 0:01:01.4]} 30. Rae1 {[%clk 0:01:39.6]}
30... Rae8 {[%clk 0:01:01.1]} 31. h5 {[%clk 0:01:38]} 31... Bd6 {[%clk
0:01:00.5]} 32. Ref1 {[%clk 0:01:36.6]} 32... Re2+ {[%clk 0:00:59.1]} 33. Kd1
{[%clk 0:01:36.5]} 33... Rxb2 {[%clk 0:00:57.4]} 34. h6 {[%clk 0:01:36.5]} 34...
g5 {[%clk 0:00:54.8]} 35. Rf5 {[%clk 0:01:32.2]} 35... Rb1+ {[%clk 0:00:51.6]}
0-1

[Event "Late-Titled-Tuesday-Blitz-October-03-2023"]
[Site "Chess.com"]
[Date "2023.10.03"]
[Round "10"]
[White "Likvidator228"]
[Black "Schwindle"]
[Result "1/2-1/2"]
[WhiteElo "2537"]
[BlackElo "2417"]
[TimeControl "180+1"]
[EndTime "15:48:47 PDT"]
[Termination "Game drawn by repetition"]

1. d4 {[%clk 0:03:00.9]} 1... Nf6 {[%clk 0:02:59.9]} 2. c4 {[%clk 0:03:01.2]}
2... e6 {[%clk 0:03:00.6]} 3. Nc3 {[%clk 0:03:01.3]} 3... Bb4 {[%clk 0:03:00.7]}
4. e3 {[%clk 0:03:01.1]} 4... b6 {[%clk 0:03:00.6]} 5. Ne2 {[%clk 0:03:01]} 5...
Ba6 {[%clk 0:03:00.8]} 6. a3 {[%clk 0:03:00.9]} 6... Bxc3+ {[%clk 0:03:00.6]} 7.
Nxc3 {[%clk 0:03:01]} 7... d5 {[%clk 0:03:01.2]} 8. cxd5 {[%clk 0:02:56.1]} 8...
Bxf1 {[%clk 0:03:00.8]} 9. Kxf1 {[%clk 0:02:55.1]} 9... exd5 {[%clk 0:03:00.6]}
10. g3 {[%clk 0:02:55.2]} 10... O-O {[%clk 0:03:00.8]} 11. Kg2 {[%clk
0:02:55.2]} 11... Re8 {[%clk 0:02:59]} 12. b4 {[%clk 0:02:53.9]} 12... Nc6
{[%clk 0:02:48.2]} 13. Qf3 {[%clk 0:02:51.1]} 13... Ne4 {[%clk 0:02:46]} 14.
Nxe4 {[%clk 0:02:48.4]} 14... Rxe4 {[%clk 0:02:26]} 15. Bd2 {[%clk 0:02:47]}
15... Qd7 {[%clk 0:02:20.9]} 16. b5 {[%clk 0:02:45.3]} 16... Ne7 {[%clk
0:02:13.6]} 17. a4 {[%clk 0:02:45.5]} 17... Re8 {[%clk 0:02:09.3]} 18. Rac1
{[%clk 0:02:44.2]} 18... c6 {[%clk 0:02:03.6]} 19. bxc6 {[%clk 0:02:39.2]} 19...
Nxc6 {[%clk 0:02:02.3]} 20. Rc2 {[%clk 0:02:38.1]} 20... R4e6 {[%clk 0:01:45.7]}
21. Rhc1 {[%clk 0:02:37.3]} 21... Rf6 {[%clk 0:01:41.2]} 22. Qd1 {[%clk
0:02:27.5]} 22... h5 {[%clk 0:01:02.9]} 23. h4 {[%clk 0:02:26.1]} 23... Qf5
{[%clk 0:01:00.3]} 24. Be1 {[%clk 0:02:22.6]} 24... Na5 {[%clk 0:00:58.1]} 25.
Rc7 {[%clk 0:02:18.9]} 25... Nc4 {[%clk 0:00:53.4]} 26. Qc2 {[%clk 0:01:52.6]}
26... Qf3+ {[%clk 0:00:48.2]} 27. Kh2 {[%clk 0:01:46.6]} 27... g6 {[%clk
0:00:40.3]} 28. Qd1 {[%clk 0:01:39.4]} 28... Qf5 {[%clk 0:00:33.1]} 29. Qc2
{[%clk 0:01:39.4]} 29... Qf3 {[%clk 0:00:32.2]} 30. Qd1 {[%clk 0:01:39.6]} 30...
Qf5 {[%clk 0:00:32.3]} 31. Qc2 {[%clk 0:01:39.9]} 31... Qf3 {[%clk 0:00:32.5]}
1/2-1/2

[Event "Late-Titled-Tuesday-Blitz-October-03-2023"]
[Site "Chess.com"]
[Date "2023.10.03"]
[Round "10"]
[White "lluiss"]
[Black "maurovargas01"]
[Result "1-0"]
[WhiteElo "2136"]
[BlackElo "1902"]
[TimeControl "180+1"]
[EndTime "15:48:51 PDT"]
[Termination "lluiss won by resignation"]

1. Nf3 {[%clk 0:02:59.9]} 1... Nc6 {[%clk 0:02:58.5]} 2. d4 {[%clk 0:02:59.3]}
2... d5 {[%clk 0:02:57.5]} 3. g3 {[%clk 0:02:57.7]} 3... Bg4 {[%clk 0:02:53.4]}
4. Bg2 {[%clk 0:02:57.4]} 4... Qd7 {[%clk 0:02:50.1]} 5. Ne5 {[%clk 0:02:48.6]}
5... Nxe5 {[%clk 0:02:48.6]} 6. dxe5 {[%clk 0:02:49.5]} 6... Bh3 {[%clk
0:02:48.3]} 7. Qxd5 {[%clk 0:02:42.8]} 7... Bxg2 {[%clk 0:02:39.1]} 8. Qxg2
{[%clk 0:02:41.4]} 8... O-O-O {[%clk 0:02:35.3]} 9. O-O {[%clk 0:02:37.4]} 9...
h5 {[%clk 0:02:34.6]} 10. h4 {[%clk 0:02:30.5]} 10... Qf5 {[%clk 0:02:17.6]} 11.
Bf4 {[%clk 0:02:25.2]} 11... Qxc2 {[%clk 0:02:12.7]} 12. e6 {[%clk 0:02:18.6]}
12... Qxb2 {[%clk 0:02:05.8]} 13. Nd2 {[%clk 0:01:59.6]} 13... fxe6 {[%clk
0:01:58.7]} 14. Rab1 {[%clk 0:01:58.4]} 14... Rxd2 {[%clk 0:01:41.2]} 15. Bxd2
{[%clk 0:01:51.5]} 15... Qxd2 {[%clk 0:01:21.9]} 16. Qxb7+ {[%clk 0:01:48.2]}
16... Kd7 {[%clk 0:01:21.6]} 17. Rfd1 {[%clk 0:01:48.3]} 17... Qd6 {[%clk
0:01:06.5]} 18. Rbc1 {[%clk 0:01:39.1]} 18... Ke8 {[%clk 0:01:03.8]} 19. Rxd6
{[%clk 0:01:30.3]} 19... cxd6 {[%clk 0:01:03.3]} 20. Rc8+ {[%clk 0:01:30.1]}
20... Kf7 {[%clk 0:01:02.9]} 21. Qxa7 {[%clk 0:01:12.5]} 21... Rh6 {[%clk
0:00:59.3]} 22. Qb8 {[%clk 0:01:11.8]} 22... Rf6 {[%clk 0:00:50.6]} 23. Rxf8+
{[%clk 0:01:10.4]} 23... Kg6 {[%clk 0:00:49.8]} 24. Rxg8 {[%clk 0:01:09.8]} 1-0

[Event "Late-Titled-Tuesday-Blitz-October-03-2023"]
[Site "Chess.com"]
[Date "2023.10.03"]
[Round "10"]
[White "The_Straightforward_Rook"]
[Black "Rozhkov_V"]
[Result "1-0"]
[WhiteElo "2559"]
[BlackElo "2433"]
[TimeControl "180+1"]
[EndTime "15:48:54 PDT"]
[Termination "The_Straightforward_Rook won by resignation"]

1. d4 {[%clk 0:03:00.9]} 1... d5 {[%clk 0:03:00]} 2. Nf3 {[%clk 0:03:00.7]} 2...
Nf6 {[%clk 0:03:00.1]} 3. c4 {[%clk 0:03:01.2]} 3... dxc4 {[%clk 0:03:01]} 4. e3
{[%clk 0:03:01.1]} 4... Bg4 {[%clk 0:03:01.6]} 5. h3 {[%clk 0:02:58.8]} 5... Bh5
{[%clk 0:03:00.8]} 6. Nbd2 {[%clk 0:02:59.5]} 6... b5 {[%clk 0:02:48]} 7. a4
{[%clk 0:02:50.2]} 7... c6 {[%clk 0:02:48.2]} 8. axb5 {[%clk 0:02:43]} 8... cxb5
{[%clk 0:02:49.1]} 9. b3 {[%clk 0:02:43.6]} 9... a5 {[%clk 0:02:49]} 10. bxc4
{[%clk 0:02:42.1]} 10... bxc4 {[%clk 0:02:49.5]} 11. Bxc4 {[%clk 0:02:35.5]}
11... e6 {[%clk 0:02:47]} 12. Qa4+ {[%clk 0:02:33.2]} 12... Nfd7 {[%clk
0:02:36.1]} 13. Ne5 {[%clk 0:02:30.3]} 13... Bb4 {[%clk 0:02:30.2]} 14. Bb5
{[%clk 0:02:23.6]} 14... Ra7 {[%clk 0:02:26.2]} 15. Ba3 {[%clk 0:02:14.9]} 15...
Bxa3 {[%clk 0:01:58.7]} 16. Qxa3 {[%clk 0:02:08.1]} 16... Rb7 {[%clk 0:01:51]}
17. Ndc4 {[%clk 0:02:04.1]} 17... Rxb5 {[%clk 0:01:00.6]} 18. Nd6+ {[%clk
0:02:03.5]} 18... Ke7 {[%clk 0:00:58.4]} 19. Ndxf7+ {[%clk 0:01:53.3]} 19... Kf6
{[%clk 0:00:55.2]} 20. Nxd8 {[%clk 0:01:52.6]} 20... Rxd8 {[%clk 0:00:52.5]} 21.
f4 {[%clk 0:01:41.8]} 21... Rc8 {[%clk 0:00:36]} 22. O-O {[%clk 0:01:39.7]}
22... Rc2 {[%clk 0:00:33.7]} 23. Rf2 {[%clk 0:01:37.1]} 23... Nxe5 {[%clk
0:00:17.8]} 24. fxe5+ {[%clk 0:01:34.2]} 1-0

[Event "Late-Titled-Tuesday-Blitz-October-03-2023"]
[Site "Chess.com"]
[Date "2023.10.03"]
[Round "10"]
[White "chessajedrezz2020"]
[Black "valemava"]
[Result "1-0"]
[WhiteElo "2678"]
[BlackElo "2319"]
[TimeControl "180+1"]
[EndTime "15:49:14 PDT"]
[Termination "chessajedrezz2020 won by checkmate"]

1. Nf3 {[%clk 0:02:53.6]} 1... b5 {[%clk 0:02:57.5]} 2. g3 {[%clk 0:02:49.8]}
2... Bb7 {[%clk 0:02:57.3]} 3. Bg2 {[%clk 0:02:50.2]} 3... g6 {[%clk 0:02:57.6]}
4. O-O {[%clk 0:02:49.1]} 4... Bg7 {[%clk 0:02:57.8]} 5. c4 {[%clk 0:02:30.7]}
5... bxc4 {[%clk 0:02:57.2]} 6. Qa4 {[%clk 0:02:28.9]} 6... Nf6 {[%clk
0:02:48.8]} 7. Qxc4 {[%clk 0:02:25.8]} 7... O-O {[%clk 0:02:42.9]} 8. Nc3 {[%clk
0:02:24.8]} 8... d6 {[%clk 0:02:41.6]} 9. Qh4 {[%clk 0:02:21.7]} 9... e5 {[%clk
0:02:35.5]} 10. d3 {[%clk 0:02:02.6]} 10... Nfd7 {[%clk 0:02:30.8]} 11. Bg5
{[%clk 0:01:54.2]} 11... f6 {[%clk 0:02:23.1]} 12. Qb4 {[%clk 0:01:19.7]} 12...
Nc5 {[%clk 0:02:08.5]} 13. Be3 {[%clk 0:01:15.2]} 13... a5 {[%clk 0:02:07.9]}
14. Qc4+ {[%clk 0:01:12.1]} 14... Kh8 {[%clk 0:02:03.1]} 15. Bxc5 {[%clk
0:01:10.5]} 15... dxc5 {[%clk 0:02:01.3]} 16. Ng5 {[%clk 0:00:31.5]} 16... Bxg2
{[%clk 0:01:57]} 17. Ne6 {[%clk 0:00:30.9]} 17... Qd6 {[%clk 0:01:30.3]} 18.
Kxg2 {[%clk 0:00:28.3]} 18... Rf7 {[%clk 0:01:26.8]} 19. Ne4 {[%clk 0:00:21.5]}
19... Qc6 {[%clk 0:01:24.2]} 20. Nd8 {[%clk 0:00:21.3]} 20... Qa6 {[%clk
0:01:08]} 21. Nxf7+ {[%clk 0:00:19.5]} 21... Kg8 {[%clk 0:01:07.8]} 22. Nh6+
{[%clk 0:00:19.1]} 22... Kf8 {[%clk 0:01:07]} 23. Qf7# {[%clk 0:00:18.8]} 1-0

[Event "Late-Titled-Tuesday-Blitz-October-03-2023"]
[Site "Chess.com"]
[Date "2023.10.03"]
[Round "10"]
[White "Hirna2005"]
[Black "protectiago"]
[Result "1-0"]
[WhiteElo "2302"]
[BlackElo "2072"]
[TimeControl "180+1"]
[EndTime "15:49:27 PDT"]
[Termination "Hirna2005 won on time"]

1. e4 {[%clk 0:03:00.9]} 1... e5 {[%clk 0:01:51.7]} 2. Nf3 {[%clk 0:02:59.2]}
2... Nc6 {[%clk 0:01:50.9]} 3. Bc4 {[%clk 0:02:58.9]} 3... Bc5 {[%clk 0:01:51]}
4. c3 {[%clk 0:02:58.7]} 4... Nf6 {[%clk 0:01:51.1]} 5. b4 {[%clk 0:02:55.4]}
5... Bb6 {[%clk 0:01:51.2]} 6. d3 {[%clk 0:02:55.8]} 6... h6 {[%clk 0:01:50.7]}
7. a4 {[%clk 0:02:54.7]} 7... a6 {[%clk 0:01:50]} 8. Bb3 {[%clk 0:02:54.1]} 8...
O-O {[%clk 0:01:47.8]} 9. O-O {[%clk 0:02:53.2]} 9... d5 {[%clk 0:01:47.3]} 10.
Qe2 {[%clk 0:02:50.3]} 10... dxe4 {[%clk 0:01:47.1]} 11. dxe4 {[%clk 0:02:50.1]}
11... Bg4 {[%clk 0:01:42.9]} 12. h3 {[%clk 0:02:44.8]} 12... Bh5 {[%clk
0:01:40.6]} 13. Rd1 {[%clk 0:02:42.1]} 13... Qe7 {[%clk 0:01:31.8]} 14. Nbd2
{[%clk 0:02:40.7]} 14... Rad8 {[%clk 0:01:22.7]} 15. Nc4 {[%clk 0:02:32.6]}
15... Ba7 {[%clk 0:01:18.5]} 16. b5 {[%clk 0:02:27.1]} 16... Bxf3 {[%clk
0:00:50.6]} 17. Qxf3 {[%clk 0:02:21.8]} 17... Rxd1+ {[%clk 0:00:50.5]} 18. Bxd1
{[%clk 0:02:10.5]} 18... Nb8 {[%clk 0:00:31.3]} 19. b6 {[%clk 0:02:10.5]} 19...
Bxb6 {[%clk 0:00:29.2]} 20. Nxb6 {[%clk 0:02:09.6]} 20... cxb6 {[%clk
0:00:27.6]} 21. Ba3 {[%clk 0:02:09.7]} 21... Qc7 {[%clk 0:00:21.6]} 22. Bxf8
{[%clk 0:02:09.2]} 22... Kxf8 {[%clk 0:00:21.2]} 23. Bb3 {[%clk 0:02:07.1]}
23... Nbd7 {[%clk 0:00:19.3]} 24. Rd1 {[%clk 0:01:58.5]} 24... Nc5 {[%clk
0:00:18.2]} 25. Bd5 {[%clk 0:01:56.7]} 25... Nxa4 {[%clk 0:00:18.5]} 26. c4
{[%clk 0:01:56.7]} 26... Nc5 {[%clk 0:00:10.9]} 27. Qf5 {[%clk 0:01:50.7]} 27...
a5 {[%clk 0:00:08.4]} 28. g4 {[%clk 0:01:48]} 28... a4 {[%clk 0:00:06.9]} 29. h4
{[%clk 0:01:44.1]} 29... Qd7 {[%clk 0:00:01]} 30. g5 {[%clk 0:01:41.7]} 1-0

[Event "Late-Titled-Tuesday-Blitz-October-03-2023"]
[Site "Chess.com"]
[Date "2023.10.03"]
[Round "10"]
[White "dennisodessa"]
[Black "crazy_but_lazy"]
[Result "1-0"]
[WhiteElo "2495"]
[BlackElo "2576"]
[TimeControl "180+1"]
[EndTime "15:49:28 PDT"]
[Termination "dennisodessa won by resignation"]

1. d4 {[%clk 0:02:59.8]} 1... Nf6 {[%clk 0:02:59.2]} 2. c4 {[%clk 0:03:00.4]}
2... c5 {[%clk 0:02:59.5]} 3. d5 {[%clk 0:03:00.1]} 3... e6 {[%clk 0:02:57.7]}
4. Nc3 {[%clk 0:02:59.9]} 4... exd5 {[%clk 0:02:58.1]} 5. cxd5 {[%clk
0:03:00.8]} 5... d6 {[%clk 0:02:58]} 6. e4 {[%clk 0:03:01.1]} 6... g6 {[%clk
0:02:58.5]} 7. Bd3 {[%clk 0:03:01.2]} 7... Bg7 {[%clk 0:02:59.1]} 8. h3 {[%clk
0:03:01.9]} 8... O-O {[%clk 0:02:59.6]} 9. Nf3 {[%clk 0:03:02.6]} 9... Na6
{[%clk 0:02:59.6]} 10. O-O {[%clk 0:03:02.2]} 10... Nc7 {[%clk 0:02:59.5]} 11.
Re1 {[%clk 0:03:00.7]} 11... Re8 {[%clk 0:02:57.9]} 12. a4 {[%clk 0:02:58.1]}
12... b6 {[%clk 0:02:57.6]} 13. Bf4 {[%clk 0:02:58.1]} 13... a6 {[%clk
0:02:55.8]} 14. Bh2 {[%clk 0:02:31.1]} 14... Rb8 {[%clk 0:02:41.5]} 15. e5
{[%clk 0:02:28]} 15... dxe5 {[%clk 0:02:40.8]} 16. Nxe5 {[%clk 0:02:28.9]} 16...
Bb7 {[%clk 0:02:36.5]} 17. Nc6 {[%clk 0:01:48]} 17... Rxe1+ {[%clk 0:02:33.2]}
18. Qxe1 {[%clk 0:01:48.9]} 18... Bxc6 {[%clk 0:02:33.4]} 19. dxc6 {[%clk
0:01:49.7]} 19... Qxd3 {[%clk 0:02:28.4]} 20. Bxc7 {[%clk 0:01:49]} 20... Rc8
{[%clk 0:02:28.6]} 21. Bxb6 {[%clk 0:01:26.2]} 21... Rxc6 {[%clk 0:02:28.5]} 22.
Rd1 {[%clk 0:01:25.2]} 22... Qc2 {[%clk 0:02:08.6]} 23. Rd8+ {[%clk 0:00:54.4]}
23... Bf8 {[%clk 0:02:08.5]} 24. Qe7 {[%clk 0:00:54.8]} 24... Qc1+ {[%clk
0:02:09]} 25. Nd1 {[%clk 0:00:55.2]} 25... Qh6 {[%clk 0:02:09.3]} 26. Bxc5
{[%clk 0:00:55.1]} 26... Rxc5 {[%clk 0:02:04.1]} 27. Qxc5 {[%clk 0:00:56]} 27...
Qg7 {[%clk 0:01:47.5]} 28. Nc3 {[%clk 0:00:49.1]} 28... h5 {[%clk 0:01:47.8]}
29. Nd5 {[%clk 0:00:40.7]} 29... Nxd5 {[%clk 0:01:30.9]} 30. Qxd5 {[%clk
0:00:41.6]} 30... Qxb2 {[%clk 0:01:31.4]} 31. g3 {[%clk 0:00:34.7]} 31... Qc1+
{[%clk 0:01:22.1]} 32. Kg2 {[%clk 0:00:32.5]} 32... Qc7 {[%clk 0:01:11.8]} 33.
Rd7 {[%clk 0:00:32.3]} 33... Qb6 {[%clk 0:01:10.7]} 34. Qxf7+ {[%clk 0:00:31.5]}
1-0

[Event "Late-Titled-Tuesday-Blitz-October-03-2023"]
[Site "Chess.com"]
[Date "2023.10.03"]
[Round "10"]
[White "Arystanner"]
[Black "Zurability"]
[Result "1-0"]
[WhiteElo "2837"]
[BlackElo "2726"]
[TimeControl "180+1"]
[EndTime "15:49:31 PDT"]
[Termination "Arystanner won on time"]

1. e4 {[%clk 0:03:00.9]} 1... c5 {[%clk 0:02:58.7]} 2. Nf3 {[%clk 0:03:01]} 2...
d6 {[%clk 0:02:58.7]} 3. d4 {[%clk 0:03:01.2]} 3... cxd4 {[%clk 0:02:59.6]} 4.
Nxd4 {[%clk 0:03:01.8]} 4... Nf6 {[%clk 0:02:58.4]} 5. Nc3 {[%clk 0:03:02.3]}
5... g6 {[%clk 0:02:58.7]} 6. Bc4 {[%clk 0:03:00.6]} 6... Bg7 {[%clk 0:02:57.5]}
7. O-O {[%clk 0:03:01]} 7... O-O {[%clk 0:02:57.3]} 8. h3 {[%clk 0:03:01.3]}
8... Nc6 {[%clk 0:02:57]} 9. Nf3 {[%clk 0:02:59.7]} 9... Na5 {[%clk 0:02:46.7]}
10. Bb3 {[%clk 0:02:58.9]} 10... Nxb3 {[%clk 0:02:45.5]} 11. axb3 {[%clk
0:02:59]} 11... b6 {[%clk 0:02:42.6]} 12. Be3 {[%clk 0:02:57.9]} 12... Bb7
{[%clk 0:02:42.6]} 13. Qd3 {[%clk 0:02:55.8]} 13... a6 {[%clk 0:02:05.4]} 14.
Rfd1 {[%clk 0:02:54]} 14... Qc7 {[%clk 0:02:03.4]} 15. Bd4 {[%clk 0:02:38.1]}
15... b5 {[%clk 0:01:45.3]} 16. Rac1 {[%clk 0:02:19.3]} 16... Rac8 {[%clk
0:01:26.8]} 17. Nd5 {[%clk 0:02:17.8]} 17... Nxd5 {[%clk 0:01:18.9]} 18. exd5
{[%clk 0:02:17.6]} 18... Bxd4 {[%clk 0:01:18.8]} 19. Qxd4 {[%clk 0:02:16.4]}
19... Qc5 {[%clk 0:01:14.8]} 20. Qh4 {[%clk 0:02:15.3]} 20... Bxd5 {[%clk
0:01:08]} 21. b4 {[%clk 0:02:11]} 21... Qc6 {[%clk 0:00:58]} 22. Ng5 {[%clk
0:01:51.6]} 22... h5 {[%clk 0:00:57.4]} 23. Rd3 {[%clk 0:01:44.3]} 23... f6
{[%clk 0:00:16.1]} 24. Nf3 {[%clk 0:01:36.5]} 24... Kg7 {[%clk 0:00:11.5]} 25.
Nd4 {[%clk 0:01:34.8]} 25... Qd7 {[%clk 0:00:09.4]} 26. Rg3 {[%clk 0:01:34.5]}
26... Bf7 {[%clk 0:00:08.2]} 27. Qxh5 {[%clk 0:01:22.5]} 27... Rh8 {[%clk
0:00:07.7]} 28. Nf5+ {[%clk 0:01:21.7]} 1-0